bitfinex/quotes_ETHUSD_20250318
["timestamp","ask_amount","ask_price","bid_price","bid_amount"]
[1742340864451,3.6959054,1939.4,1939.3,5.15649]
[1742340864987,3.6959054,1939.4,1939.3,6.997997]
[1742340871119,3.6959054,1939.4,1939.3,6.187797]
[1742340871292,17.46376522,1939.9,1939.6,5.15567]
[1742340871489,3.6959054,1939.7,1939.6,5.15567]
[1742340872696,7.3918108,1939.7,1939.4,3.0]
[1742340872900,0.7748,1939.7,1939.5,3.0]
[1742340873111,0.7748,1939.7,1939.5,8.15593]
[1742340873418,1.367807,1939.7,1939.5,8.15596]
[1742340874211,0.7748,1939.7,1939.5,8.15587]
[1742340874516,3.6959054,1939.6,1939.5,8.15582]
[1742340875026,7.3918108,1939.6,1939.5,8.15582]
[1742340875319,7.3918108,1939.6,1939.5,3.0]
[1742340876220,3.6959054,1939.6,1939.5,3.0]
[1742340876424,3.6959054,1939.6,1939.5,8.15596]
[1742340877734,3.6959054,1939.6,1939.5,3.0]
[1742340878619,3.6959054,1939.6,1939.5,8.15596]
[1742340880314,7.3918108,1939.6,1939.5,8.15596]
[1742340880835,8.89879188,1939.6,1939.0,5.15729]
[1742340881025,3.6959054,1939.1,1939.0,5.15729]
[1742340881235,3.6959054,1939.1,1939.0,3.0]
[1742340881428,8.7509054,1939.1,1938.6,0.792]
[1742340881749,3.6959054,1938.7,1938.6,8.15819]
[1742340881906,3.6959054,1938.7,1938.6,10.281871]
[1742340882307,3.6959054,1938.7,1938.6,7.281871]
[1742340882518,3.6959054,1938.7,1938.6,10.281871]
[1742340885951,3.6959054,1938.7,1938.6,8.15819]
[1742340886255,7.3918108,1938.7,1938.6,3.0]
[1742340887357,7.3918108,1938.7,1938.4,5.15876]
[1742340887549,3.6959054,1938.5,1938.4,5.15876]
[1742340887878,3.6959054,1938.5,1938.4,3.0]
[1742340888168,3.6959054,1938.5,1938.4,8.15889]
[1742340888373,11.041565,1938.3,1938.2,5.15931]
[1742340888530,3.6959054,1938.3,1938.2,13.31863]
[1742340889148,3.6959054,1938.3,1938.2,8.15931]
[1742340889459,3.6959054,1938.3,1938.1,10.31916]
[1742340889648,5.9263,1938.6,1938.1,10.31916]
[1742340889649,5.9263,1938.6,1938.2,8.15939]
[1742340889844,2.58252353,1938.6,1938.2,8.15939]
[1742340890049,2.58252353,1938.6,1938.2,8.15921]
[1742340890244,2.58252353,1938.6,1938.3,5.15903]
[1742340890452,0.7678,1938.6,1938.5,5.15862]
[1742340891147,8.7509054,1938.7,1938.6,5.15836]
[1742340892775,9.5325054,1938.7,1938.5,5.15848]
[1742340893079,3.6959054,1938.6,1938.5,5.15848]
[1742340893247,3.6959054,1938.6,1938.4,5.15877]
[1742340893648,3.6959054,1938.6,1938.5,5.15862]
[1742340894042,5.01874648,1938.6,1938.4,5.15875]
[1742340894259,5.01874648,1938.6,1938.4,8.15863]
[1742340894456,3.6959054,1938.6,1938.4,8.15863]
[1742340894658,3.6959054,1938.6,1938.5,5.15862]
[1742340894862,3.6959054,1938.6,1938.4,8.15863]
[1742340895178,3.6959054,1938.6,1938.4,13.31741]
[1742340895383,3.6959054,1938.6,1938.5,5.15862]
[1742340897080,7.3918108,1938.6,1938.4,13.31731]
[1742340897291,7.3918108,1938.6,1938.5,5.15862]
[1742340898186,8.71465188,1938.6,1938.5,5.15862]
[1742340898394,8.71465188,1938.6,1938.4,13.31735]
[1742340898564,7.3918108,1938.6,1938.4,8.15863]
[1742340900618,7.3918108,1938.6,1938.5,5.15862]
[1742340902716,3.6959054,1938.6,1938.5,5.15862]
[1742340904711,3.6959054,1938.6,1938.4,8.15882]
[1742340904885,7.3918108,1938.6,1938.4,8.15882]
[1742340905084,7.3918108,1938.6,1938.4,13.31761]
[1742340905085,3.6959054,1938.6,1938.4,13.31761]
[1742340905309,7.3918108,1938.6,1938.5,5.15862]
[1742340905504,3.6959054,1938.6,1938.5,5.15862]
[1742340905815,3.6959054,1938.6,1938.5,6.569661]
[1742340906020,0.8139,1939.1,1938.9,5.1575]
[1742340906194,5.033,1939.2,1939.1,5.157]
[1742340906389,8.7289054,1939.2,1939.1,5.15703]
[1742340907307,8.7289054,1939.2,1939.0,5.15722]
[1742340907922,8.7289054,1939.2,1939.1,5.15703]
[1742340908298,3.6959054,1939.2,1939.1,5.15703]
[1742340908501,3.6959054,1939.2,1939.1,6.981443]
[1742340908936,3.6959054,1939.2,1939.1,5.15703]
[1742340909340,3.6959054,1939.2,1938.7,5.15786]
[1742340909341,11.10713,1938.9,1938.7,5.158]
[1742340909638,3.6959054,1938.8,1938.7,8.158]
[1742340909809,3.6959054,1938.8,1938.7,3.0]
[1742340911358,3.6959054,1938.8,1938.7,9.489727]
[1742340912525,3.6959054,1938.8,1938.7,8.15809]
[1742340912900,3.6959054,1938.8,1938.7,3.0]
[1742340913496,7.3918108,1938.8,1938.5,5.15855]
[1742340913811,7.3918108,1938.6,1938.5,5.15855]
[1742340914007,3.6959054,1938.6,1938.5,5.15855]
[1742340914235,3.6959054,1938.6,1938.5,5.12325]
[1742340916418,3.6959054,1938.6,1938.4,5.15874]
[1742340917847,3.6959054,1938.6,1938.5,5.15862]
[1742340918013,7.3918108,1938.6,1938.5,5.15862]
[1742340919157,14.11036,1938.3,1938.2,8.15942]
[1742340919362,3.6959054,1938.3,1938.2,8.15942]
[1742340920114,3.6959054,1938.3,1938.0,5.1598]
[1742340920311,3.6959054,1938.1,1938.0,5.1598]
[1742340920544,3.6959054,1938.1,1938.0,3.0]
[1742340920944,3.6959054,1938.1,1938.0,8.15995]
[1742340922042,3.6959054,1938.1,1938.0,10.266356]
[1742340922519,3.6959054,1938.3,1938.2,8.93382]
[1742340922740,5.028,1938.8,1938.7,5.15809]
[1742340924769,8.7239054,1938.8,1938.7,5.15809]
[1742340924964,3.6959054,1938.8,1938.7,5.15809]
[1742340925281,3.6959054,1938.8,1938.7,8.15809]
[1742340926138,5.031,1939.0,1938.9,5.15756]
[1742340926394,8.7269054,1939.0,1938.9,5.15756]
[1742340926731,3.6959054,1939.0,1938.9,5.15756]
[1742340927471,3.6959054,1939.0,1938.8,5.15782]
[1742340927676,3.6959054,1939.0,1938.8,8.15782]
[1742340927677,0.36959054,1938.9,1938.8,8.15782]
[1742340928339,0.36959054,1938.9,1938.8,5.15782]
[1742340928878,0.36959054,1938.9,1938.7,5.15808]
[1742340929088,3.6959054,1938.8,1938.7,5.15808]
[1742340932638,3.6959054,1938.8,1938.7,5.94038]
[1742340932959,3.6959054,1938.8,1938.7,7.59230092]
[1742340942575,3.6959054,1939.5,1939.3,5.15649]
[1742340942780,12.3848108,1939.5,1939.3,10.31279]
[1742340943080,12.3848108,1939.5,1939.4,0.24172778]
[1742340943249,12.3848108,1939.5,1939.4,5.15623]
[1742340943450,12.3848108,1939.5,1939.4,5.39795021]
[1742340944658,3.6959054,1939.5,1939.4,5.39795021]
[1742340946394,7.3918108,1939.5,1939.4,5.39795021]
[1742340949684,7.3918108,1939.5,1939.4,0.24172021]
[1742340949887,7.3918108,1939.5,1939.2,5.15672]
[1742340950096,3.6959054,1939.3,1939.2,3.0]
[1742340950271,9.6480854,1939.3,1938.9,5.1573]
[1742340950471,3.6959054,1939.0,1938.7,0.8268]
[1742340950671,3.6959054,1938.8,1938.6,5.15813]
[1742340950890,3.6959054,1938.8,1938.7,8.15797]
[1742340954008,3.6959054,1938.8,1938.5,0.8268]
[1742340954220,7.3918108,1938.6,1938.5,10.3171]
[1742340954374,3.6959054,1938.6,1938.5,13.3171]
[1742340955633,3.6959054,1938.6,1938.5,14.64881]
[1742340958729,3.6959054,1938.6,1938.5,14.86574882]
[1742340962952,3.6959054,1938.6,1938.5,8.37544882]
[1742340963150,8.1873108,1938.6,1938.5,0.21693882]
[1742340963319,8.1873108,1938.6,1938.5,5.37555882]
[1742340963522,4.4914054,1938.6,1938.5,5.37555882]
[1742340964825,8.1873108,1938.6,1938.5,5.37555882]
[1742340965026,8.1873108,1938.6,1938.5,5.32555882]
[1742340965723,4.4914054,1938.6,1938.5,5.32555882]
[1742340968906,4.4914054,1938.6,1938.5,0.16693882]
[1742340969597,8.1873108,1938.6,1938.5,0.16693882]
[1742340969807,9.00604188,1938.6,1938.5,0.16693882]
[1742340970101,9.00604188,1938.6,1938.5,0.11693882]
[1742340970264,9.00604188,1938.6,1938.5,0.20651225]
[1742340970464,14.16440188,1938.6,1938.5,0.20651225]
[1742340970671,14.16440188,1938.6,1938.2,13.31858]
[1742340970993,3.6959054,1938.3,1938.2,5.15923]
[1742340972622,3.6959054,1938.3,1938.2,5.35883782]
[1742340976459,0.7955,1938.6,1938.5,5.15862]
[1742340976668,8.6529054,1938.6,1938.5,5.15862]
[1742340976827,8.6529054,1938.6,1938.5,5.35825229]
[1742340977214,12.3488108,1938.6,1938.5,5.35825229]
[1742340977414,13.58369188,1938.6,1938.5,5.35825229]
[1742340977610,14.35669188,1938.6,1938.5,0.19963229]
[1742340977839,19.51505188,1938.6,1938.5,0.19963229]
[1742340978045,19.51505188,1938.6,1938.2,5.15941]
[1742340978250,3.6959054,1938.3,1938.2,8.15941]
[1742340979160,3.6959054,1938.3,1938.2,5.15941]
[1742340979321,4.4689054,1938.3,1938.2,5.15941]
[1742340980531,3.6959054,1938.3,1938.2,5.15941]
[1742340982722,3.6959054,1938.3,1938.2,8.15941]
[1742340983953,3.6959054,1938.3,1938.1,5.15956]
[1742340984154,4.56129594,1938.3,1938.1,5.15956]
[1742340984355,0.7905,1938.2,1938.1,5.15956]
[1742340984670,0.7905,1938.2,1938.1,3.0]
[1742340985021,0.7905,1938.2,1938.1,8.15969]
[1742340985367,4.56129594,1938.3,1938.1,13.31919]
[1742340985663,4.56129594,1938.3,1938.1,8.1595]
[1742340988130,0.45612959,1938.2,1938.0,5.15992]
[1742340988347,4.4864054,1938.1,1937.9,5.16007]
[1742340988568,3.6959054,1938.0,1937.9,8.16007]
[1742340988865,3.6959054,1938.0,1937.9,8.36038022]
[1742340993382,4.17029845,1938.0,1937.9,0.20031022]
[1742340993586,4.17029845,1938.0,1937.8,5.16046]
[1742340993891,9.12829845,1938.0,1937.9,0.20044511]
[1742340994290,19.32480385,1938.0,1937.5,5.16118]
[1742340994602,5.16118,1937.5,1937.4,5.16155]
[1742340994751,3.6959054,1937.4,1937.3,5.16181]
[1742340997498,3.6959054,1937.4,1937.2,5.16207]
[1742340997681,3.6959054,1937.4,1937.2,8.16197]
[1742340997869,3.6959054,1937.4,1937.3,5.16182]
[1742340998255,3.6959054,1937.4,1937.2,13.32391]
[1742340998703,3.6959054,1937.4,1937.2,8.16194]
[1742340999006,3.6959054,1937.4,1937.3,5.16182]
[1742340999302,3.6959054,1937.4,1937.2,8.16207]
[1742340999473,4.14064594,1937.4,1937.2,5.16207]
[1742340999673,4.14064594,1937.4,1937.1,5.16225]
[1742341000007,3.6959054,1937.2,1937.1,5.16225]
[1742341002485,3.6959054,1937.2,1937.0,8.16252]
[1742341002792,4.4474054,1937.2,1937.0,8.16252]
[1742341002993,4.89214594,1937.2,1937.0,8.16252]
[1742341003554,4.89214594,1937.2,1937.0,5.16252]
[1742341003760,4.89214594,1937.2,1937.1,5.34317912]
[1742341004172,4.89214594,1937.2,1937.1,0.18082912]
[1742341004368,9.85214594,1937.2,1937.1,0.18082912]
[1742341005579,15.56422594,1937.2,1937.1,0.18082912]
[1742341005725,11.86832054,1937.2,1937.1,0.13951692]
[1742341005925,11.86832054,1937.2,1937.1,0.17515829]
[1742341006097,11.86832054,1937.2,1936.8,5.16296]
[1742341006302,1.18683205,1937.1,1936.8,10.32601]
[1742341006493,1.18683205,1937.1,1936.8,5.16296]
[1742341006819,1.18683205,1937.1,1936.9,5.16284]
[1742341007118,1.18683205,1937.1,1936.8,5.16296]
[1742341007495,1.58297288,1937.1,1936.9,5.16267]
[1742341007712,1.58297288,1937.1,1936.9,10.32538]
[1742341007713,3.6959054,1937.0,1936.9,10.32538]
[1742341009110,3.6959054,1937.0,1936.9,5.16267]
[1742341011316,3.6959054,1937.0,1936.9,10.020648]
[1742341013242,3.6959054,1937.0,1936.9,10.19635517]
[1742341013457,3.6959054,1937.0,1936.9,9.16377717]
[1742341014502,3.6959054,1937.0,1936.9,8.33837717]
[1742341014844,3.6959054,1937.0,1936.9,5.33837717]
[1742341015642,9.4550054,1937.0,1936.9,5.33837717]
[1742341015845,10.43989685,1937.0,1936.9,5.33837717]
[1742341016826,9.64079685,1937.0,1936.9,5.33837717]
[1742341017745,8.6559054,1937.0,1936.9,5.33837717]
[1742341018106,8.6559054,1937.0,1936.9,8.33837717]
[1742341018524,3.6959054,1937.0,1936.9,8.33837717]
[1742341019749,5.7601,1937.3,1937.2,5.16208]
[1742341020056,4.976666,1937.2,1937.1,5.1623]
[1742341020217,1.44326714,1937.2,1937.1,5.1623]
[1742341020572,1.44326714,1937.2,1937.0,10.32503]
[1742341020749,1.44326714,1937.2,1937.0,5.16244]
[1742341020750,3.6959054,1937.1,1937.0,5.16244]
[1742341023640,3.6959054,1937.1,1936.9,5.1628]
[1742341023824,3.6959054,1937.1,1936.9,10.32549]
[1742341024012,4.06549594,1937.1,1936.9,10.32549]
[1742341025658,4.46134447,1937.1,1936.8,5.16312]
[1742341025838,3.6959054,1936.9,1936.8,8.163]
[1742341026360,3.6959054,1936.9,1936.8,8.16315]
[1742341026562,7.84261134,1936.9,1936.7,5.1634]
[1742341026760,7.84261134,1936.9,1936.5,5.16379]
[1742341026761,12.80361134,1936.9,1936.5,5.16379]
[1742341026947,3.6959054,1936.6,1936.5,5.16379]
[1742341032753,3.6959054,1936.6,1936.4,5.16422]
[1742341032950,0.8121,1936.5,1936.4,5.16422]
[1742341033155,5.16422,1936.4,1936.2,8.16465]
[1742341033356,1.26290054,1936.5,1936.3,5.16448]
[1742341033573,0.8121,1936.5,1936.3,5.16448]
[1742341033949,0.8121,1936.5,1936.4,0.17635936]
[1742341034166,4.5080054,1936.5,1936.4,5.34057936]
[1742341034380,3.6959054,1936.5,1936.4,5.16422]
[1742341034579,3.6959054,1936.5,1936.4,5.34144264]
[1742341036066,3.6959054,1936.5,1936.0,8.16515]
[1742341036067,9.87666058,1936.5,1936.0,8.16515]
[1742341036274,3.6959054,1936.1,1936.0,8.16515]
[1742341037353,1.19274638,1936.6,1936.4,5.16422]
[1742341037675,0.38064638,1936.6,1936.5,5.16395]
[1742341037886,0.53426464,1936.6,1936.5,5.16395]
[1742341038976,4.23017004,1936.6,1936.5,5.16395]
[1742341040447,3.6959054,1936.6,1936.5,5.16395]
[1742341040656,8.6579054,1936.6,1936.5,5.16395]
[1742341041764,3.6959054,1936.6,1936.5,5.16395]
[1742341041966,3.6959054,1936.6,1936.5,8.93475]
[1742341042942,4.962,1937.0,1936.9,5.16288]
[1742341043153,8.6579054,1937.0,1936.9,5.16288]
[1742341043671,8.6579054,1937.0,1936.9,5.32714359]
[1742341045584,3.6959054,1937.0,1936.9,6.45667395]
[1742341046177,3.6959054,1937.0,1936.9,5.32714359]
[1742341047189,3.6959054,1937.0,1936.9,8.32714359]
[1742341048690,4.961,1937.4,1937.3,5.16182]
[1742341049069,0.786,1937.6,1937.3,5.32537733]
[1742341049272,0.786,1937.6,1937.5,5.16129]
[1742341049474,5.747,1937.6,1937.5,5.16129]
[1742341049675,5.747,1937.6,1937.5,5.32467367]
[1742341050899,5.747,1937.6,1937.5,0.16338367]
[1742341051269,6.13606118,1937.6,1937.5,0.16338367]
[1742341051664,6.13606118,1937.6,1937.5,5.32467367]
[1742341051958,4.961,1937.6,1937.5,5.32467367]
[1742341052190,24.4788108,1937.7,1937.5,5.32467367]
[1742341052391,3.6959054,1937.6,1937.5,6.37328104]
[1742341052710,17.084,1938.3,1938.0,5.15974]
[1742341052711,0.63848935,1938.2,1938.0,5.15974]
[1742341053205,0.3910028,1938.2,1938.1,0.16286289]
[1742341053373,5.94542,1938.2,1938.1,0.16286289]
[1742341053583,1.04654157,1938.2,1937.6,11.12682]
[1742341053780,6.75596157,1938.2,1938.1,0.16286289]
[1742341054007,5.15979,1938.1,1937.6,5.16081]
[1742341054215,6.75596157,1938.2,1937.8,5.16048]
[1742341054438,0.67559616,1938.1,1937.9,5.16022]
[1742341054719,4.961,1938.1,1937.9,0.16303645]
[1742341054886,3.6959054,1938.0,1937.8,5.16047]
[1742341055214,4.961,1938.1,1938.0,0.16294967]
[1742341055418,8.6569054,1938.1,1937.9,10.48335645]
[1742341055635,8.6569054,1938.1,1938.0,0.16294967]
[1742341055821,9.6394412,1938.1,1938.0,0.16294967]
[1742341056404,9.6394412,1938.1,1938.0,5.32289967]
[1742341056588,3.6959054,1938.1,1938.0,6.13889967]
[1742341057708,3.6959054,1938.1,1938.0,5.32289967]
[1742341060227,3.6959054,1938.1,1938.0,0.16294967]
[1742341060394,3.6959054,1938.1,1938.0,5.32289967]
[1742341060590,4.5996412,1938.1,1938.0,5.15995]
[1742341060790,4.5996412,1938.1,1938.0,5.31622626]
[1742341061417,3.6959054,1938.1,1938.0,5.31622626]
[1742341061934,4.959,1938.4,1938.2,5.15942]
[1742341062239,3.6959054,1938.3,1938.2,10.31872]
[1742341063806,3.6959054,1938.3,1938.2,10.47353084]
[1742341064247,0.38346296,1938.9,1938.3,0.816]
[1742341064431,5.7081,1939.1,1938.8,5.15782]
[1742341064610,17.34335408,1939.0,1938.8,5.15782]
[1742341064816,17.34335408,1939.0,1938.9,0.15410673]
[1742341065125,17.34335408,1939.0,1938.7,5.15805]
[1742341065326,23.05082408,1939.0,1938.9,0.15410673]
[1742341065677,5.15773,1938.9,1938.5,5.15857]
[1742341065822,5.15773,1938.9,1938.4,3.0]
[1742341065823,7.3918108,1938.6,1938.4,3.0]
[1742341066021,12.3498108,1938.6,1938.5,5.15862]
[1742341066233,12.3498108,1938.6,1938.4,8.15888]
[1742341066234,8.6539054,1938.6,1938.4,8.15888]
[1742341066438,12.3498108,1938.6,1938.4,8.15888]
[1742341067136,12.3498108,1938.6,1938.4,13.31764]
[1742341067351,8.6539054,1938.6,1938.5,5.15862]
[1742341067553,8.6539054,1938.6,1938.5,5.97462]
[1742341067839,3.6959054,1938.6,1938.5,5.97459]
[1742341068004,0.26435408,1939.0,1938.9,5.15756]
[1742341068212,3.6959054,1939.0,1938.9,5.15756]
[1742341068428,3.95703818,1939.0,1938.9,5.15756]
[1742341068906,3.6959054,1939.0,1938.9,5.15756]
[1742341069103,3.6959054,1939.0,1938.9,7.005098]
[1742341070320,3.6959054,1939.0,1938.9,5.97356]
[1742341075634,5.15759,1938.9,1938.6,3.0]
[1742341075959,3.6959054,1938.7,1938.5,8.15852]
[1742341076258,3.6959054,1938.6,1938.5,8.15852]
[1742341078739,3.6959054,1938.6,1938.5,9.570749]
[1742341078939,3.6959054,1938.6,1938.5,9.718666]
[1742341079964,3.6959054,1938.6,1938.5,10.523566]
[1742341084172,4.956,1938.9,1938.8,8.15782]
[1742341084370,8.6519054,1938.9,1938.8,8.15782]
[1742341084580,8.6519054,1938.9,1938.8,8.30547684]
[1742341087155,8.6519054,1938.9,1938.8,5.30547684]
[1742341090261,9.4536054,1938.9,1938.8,0.14765684]
[1742341090468,10.39896594,1938.9,1938.6,8.1582]
[1742341090791,3.6959054,1938.7,1938.6,8.1582]
[1742341092897,3.6959054,1938.7,1938.6,9.46530394]
[1742341093801,4.956,1939.3,1939.2,5.15676]
[1742341094175,17.088,1939.4,1939.3,5.15649]
[1742341094573,17.088,1939.4,1939.3,5.30378771]
[1742341094798,24.30289604,1939.4,1939.3,0.14729771]
[1742341095204,20.69544802,1939.4,1939.3,0.14729771]
[1742341095377,20.69544802,1939.4,1939.3,5.30378771]
[1742341096092,24.30289604,1939.4,1939.3,5.30378771]
[1742341096293,20.69544802,1939.4,1939.3,5.30378771]
[1742341096606,0.8017,1939.3,1939.1,5.15694]
[1742341096790,7.21489604,1939.2,1939.0,3.0]
[1742341097180,5.7567,1939.1,1938.8,5.15759]
[1742341097380,3.60744802,1939.0,1938.8,5.15759]
[1742341097590,3.60744802,1939.0,1938.9,3.0]
[1742341097791,3.60744802,1939.0,1938.7,5.15809]
[1742341098109,3.60744802,1938.8,1938.7,5.15809]
[1742341100026,4.40914802,1938.8,1938.7,5.15809]
[1742341100408,3.60744802,1938.8,1938.7,5.15809]
[1742341101120,3.60744802,1938.8,1938.7,10.247733]
[1742341101618,4.37744802,1939.2,1938.7,10.247733]
[1742341101925,4.37744802,1939.2,1938.9,5.15731]
[1742341102217,3.60744802,1939.0,1938.9,5.15731]
[1742341104389,3.60744802,1939.0,1938.9,5.29980523]
[1742341105015,3.60744802,1939.0,1938.9,0.14249523]
[1742341105206,4.37744802,1939.0,1938.9,0.14249523]
[1742341105406,5.33090082,1939.0,1938.7,8.15792]
[1742341105630,1.7234528,1939.0,1938.9,0.1424878]
[1742341105803,0.77,1939.0,1938.8,5.3003745]
[1742341106132,3.60744802,1938.9,1938.8,5.1578]
[1742341107391,3.60744802,1938.9,1938.8,5.9158]
[1742341108931,3.60744802,1938.9,1938.8,6.05835964]
[1742341114867,3.60744802,1938.9,1938.8,9.05835964]
[1742341116066,3.60744802,1938.9,1938.8,8.30035964]
[1742341120828,3.60744802,1938.9,1938.8,9.6461876]
[1742341121273,3.60744802,1939.1,1939.0,5.15729]
[1742341121770,3.60744802,1939.1,1939.0,6.08256482]
[1742341127457,3.60744802,1939.1,1939.0,5.29956482]
[1742341128873,3.60744802,1939.1,1939.0,8.29956482]
[1742341129372,4.41118762,1939.1,1939.0,0.14227482]
[1742341129536,10.18768762,1939.1,1939.0,0.14227482]
[1742341129738,10.18768762,1939.1,1938.8,5.15776]
[1742341129957,3.60744802,1938.9,1938.8,5.15776]
[1742341130173,3.60744802,1938.9,1938.8,8.15776]
[1742341131483,3.60744802,1938.9,1938.8,3.0]
[1742341131642,4.03013808,1938.9,1938.8,3.0]
[1742341131841,9.59073189,1938.9,1938.5,5.15857]
[1742341132147,4.03013808,1938.6,1938.5,5.15857]
[1742341132459,10.31737,1938.4,1938.2,5.15917]
[1742341132659,4.03013808,1938.3,1938.0,5.15991]
[1742341132870,0.7825,1938.3,1938.1,5.15962]
[1742341133047,3.24763808,1938.2,1938.1,5.15962]
[1742341133447,3.24763808,1938.2,1938.0,5.15992]
[1742341133643,3.24763808,1938.1,1937.8,5.95249668]
[1742341133859,3.24763808,1937.9,1937.8,0.79201668]
[1742341134263,11.85228997,1937.9,1937.8,0.79201668]
[1742341134558,11.85228997,1937.9,1937.3,5.92450602]
[1742341134559,18.34500997,1937.9,1937.4,5.16143]
[1742341134866,3.25212522,1937.5,1937.3,5.92471602]
[1742341135048,3.25212522,1937.4,1937.3,5.92471602]
[1742341135551,3.25212522,1937.4,1937.3,5.16179]
[1742341137584,3.25212522,1937.4,1937.3,8.16179]
[1742341137788,3.25212522,1937.4,1937.3,10.300072]
[1742341138755,17.066,1938.0,1937.8,5.16049]
[1742341139058,5.7375,1938.1,1937.9,5.16001]
[1742341139262,4.956,1938.2,1938.1,5.15967]
[1742341139479,5.56914259,1938.2,1938.1,5.15967]
[1742341139684,5.56914259,1938.2,1938.1,5.28445793]
[1742341141319,8.82126781,1938.2,1938.1,0.12478793]
[1742341142705,8.82126781,1938.2,1938.1,5.28447793]
[1742341144290,8.20812522,1938.2,1938.1,5.28447793]
[1742341145486,8.20812522,1938.2,1938.1,0.12478793]
[1742341146722,8.20812522,1938.2,1938.1,5.28447793]
[1742341147016,3.25212522,1938.2,1938.1,5.28447793]
[1742341147183,3.25212522,1938.2,1938.1,0.12478793]
[1742341147378,10.51679642,1938.2,1937.7,5.16053]
[1742341147615,3.25212522,1937.8,1937.7,8.16053]
[1742341148482,3.25212522,1937.8,1937.7,8.93773]
[1742341149219,3.25212522,1937.8,1937.7,8.16053]
[1742341153717,3.706732,1937.7,1937.5,5.16121]
[1742341153917,6.50425044,1937.6,1937.5,8.16121]
[1742341154108,3.25212522,1937.6,1937.5,8.16121]
[1742341154518,4.01022522,1937.6,1937.4,5.16136]
[1742341154719,3.25212522,1937.5,1937.4,5.16136]
[1742341155619,3.25212522,1937.5,1937.3,5.1618]
[1742341155864,3.25212522,1937.4,1937.3,5.1618]
[1742341156520,3.25212522,1937.4,1937.2,5.16202]
[1742341156722,10.24423201,1937.6,1937.2,8.16202]
[1742341156723,3.25212522,1937.3,1937.2,8.16202]
[1742341159335,3.25212522,1937.3,1937.2,5.16202]
[1742341159539,3.57733774,1937.3,1937.2,5.16202]
[1742341159743,4.33543774,1937.3,1937.0,5.16251]
[1742341159924,3.25212522,1937.1,1936.9,5.16278]
[1742341160234,3.25212522,1937.0,1936.9,5.16288]
[1742341160411,3.25212522,1937.0,1936.9,8.16288]
[1742341160612,4.07303774,1937.0,1936.9,8.16288]
[1742341162135,3.25212522,1937.0,1936.9,8.16288]
[1742341162941,3.25212522,1937.1,1937.0,5.16262]
[1742341163131,4.957,1937.4,1937.2,5.16196]
[1742341163308,4.957,1937.4,1937.3,5.16182]
[1742341163625,4.957,1937.4,1937.2,5.16196]
[1742341163938,4.957,1937.4,1937.2,5.16192]
[1742341164137,4.957,1937.4,1937.2,10.32381]
[1742341164433,4.06466857,1937.6,1937.4,5.16155]
[1742341164640,4.958,1937.6,1937.5,5.16129]
[1742341166038,11.46225044,1937.6,1937.5,5.16129]
[1742341166219,12.68460548,1937.6,1937.5,5.16129]
[1742341166918,5.16129,1937.5,1937.4,5.16155]
[1742341167115,12.68460548,1937.6,1937.4,5.16155]
[1742341167316,12.68460548,1937.6,1937.4,5.16139]
[1742341167617,12.68460548,1937.6,1937.5,5.16129]
[1742341167942,3.25212522,1937.6,1937.5,5.16129]
[1742341168138,3.25212522,1937.6,1937.5,5.94229]
[1742341168333,3.25212522,1937.6,1937.5,8.16129]
[1742341168853,3.25212522,1937.6,1937.5,8.27435956]
[1742341170648,3.25212522,1937.6,1937.5,5.27435956]
[1742341170891,8.08656296,1937.6,1937.5,0.11306956]
[1742341171158,8.08656296,1937.6,1937.2,5.16207]
[1742341171159,13.03628296,1937.6,1937.2,5.16207]
[1742341171366,3.25212522,1937.3,1937.2,5.16207]
[1742341171530,8.21012522,1937.3,1937.2,5.16207]
[1742341172843,3.25212522,1937.3,1937.2,5.16207]
[1742341177581,8.97142522,1937.6,1937.4,10.32276]
[1742341177788,13.12069296,1937.6,1937.4,10.32276]
[1742341178288,13.12069296,1937.6,1937.4,5.16135]
[1742341180653,13.12069296,1937.6,1937.4,10.32275]
[1742341180971,12.35939296,1937.6,1937.5,5.16129]
[1742341181541,12.35939296,1937.6,1937.4,5.16135]
[1742341181981,1.2359393,1937.5,1937.4,5.16135]
[1742341182272,1.2359393,1937.5,1937.2,5.16196]
[1742341182453,3.25212522,1937.3,1937.2,5.16196]
[1742341182651,3.25212522,1937.3,1937.1,5.16233]
[1742341183250,4.957,1937.2,1937.0,8.16258]
[1742341183458,3.25212522,1937.1,1937.0,8.16258]
[1742341183656,3.25212522,1937.1,1937.0,5.16258]
[1742341183878,3.25212522,1937.1,1937.0,0.11341538]
[1742341184250,4.07292522,1937.1,1936.8,13.32606]
[1742341184558,4.07292522,1937.1,1936.8,8.16302]
[1742341184559,3.25212522,1936.9,1936.8,8.16302]
[1742341184876,3.25212522,1936.9,1936.6,5.16352]
[1742341184877,6.50425044,1936.9,1936.6,5.16352]
[1742341185066,3.25212522,1936.7,1936.6,5.16352]
[1742341187049,3.25212522,1936.7,1936.6,8.16352]
[1742341187362,3.25212522,1936.8,1936.7,5.16342]
[1742341187690,3.25212522,1936.8,1936.7,7.290214]
[1742341188454,4.958,1937.1,1937.0,5.16262]
[1742341188660,8.21012522,1937.1,1937.0,5.16262]
[1742341191597,5.16262,1937.0,1936.9,5.16279]
[1742341191800,8.21012522,1937.1,1936.9,5.16279]
[1742341191955,1.64081252,1937.0,1936.8,5.16305]
[1742341192155,6.50425044,1936.9,1936.7,5.16338]
[1742341192395,3.25212522,1936.8,1936.7,5.16338]
[1742341192699,2.023844,1936.7,1936.6,5.16362]
[1742341192859,3.25212522,1936.7,1936.6,5.16362]
[1742341193958,9.02992522,1936.7,1936.5,5.1638]
[1742341194192,3.25212522,1936.6,1936.5,8.1638]
[1742341194867,3.25212522,1936.6,1936.5,5.1638]
[1742341195072,3.25212522,1936.6,1936.5,8.1638]
[1742341198503,3.25212522,1936.6,1936.5,8.9342]
[1742341198714,3.25212522,1936.6,1936.5,10.344039]
[1742341199001,3.25212522,1936.6,1936.5,10.45476108]
[1742341200498,3.25212522,1936.8,1936.7,5.16342]
[1742341200702,3.22182522,1936.8,1936.7,5.16342]
[1742341200861,3.22182522,1936.8,1936.7,5.27396828]
[1742341201056,3.22182522,1936.8,1936.7,6.39477311]
[1742341202499,3.22182522,1936.8,1936.7,9.39477311]
[1742341203159,3.22182522,1936.8,1936.7,10.16517311]
[1742341206202,8.41316522,1937.6,1937.3,5.16165]